Cogmind - Beta 16.1 *** ADVENTURER MODE // 2026.03.24 @ 13:42:15 Player: robocop Result: Destroyed by 62-JTD(R) with Subdweller Laser Performance ------------- Evolutions (0) 0 Regions Visited (3) 600 Robots Destroyed (25) 125 Value Destroyed (672) 672 Prototype IDs (0) 0 Alien Tech Used (0) 0 Bonus (0) 0 TOTAL SCORE: 1397 Bonus ------- None Cogmind --------- Core Integrity 0/250 Matter 252/300 Energy 250/250 System Corruption 0% Temperature Cool (6) Movement Treading (160) Location -10/Subcaves Parts ------- > --- POWER (1) -------- Ion Engine > --- PROPULSION (2) --- Light Treads Light Treads > --- UTILITY (2) ------ Large Storage Unit Sensor Array > --- WEAPON (2) ------- Medium Laser Battle Rifle > --- INVENTORY (15) --- Light Treads Subdweller Monowheel Improved Heat Sink Medium Storage Unit Huge Storage Unit Structural Scanner Signal Interpreter Terrain Scan Processor Targeting Computer Scrap Shield Light Assault Rifle Battle Cannon Dirty Datajack (20) Mining Laser Peak State ------------ > --- POWER ------------ Ion Engine > --- PROPULSION ------- Light Treads Light Treads > --- UTILITY ---------- Large Storage Unit Subdweller Optics > --- WEAPON ----------- Light Assault Rifle Light Assault Rifle > --- INVENTORY -------- Light Treads Light Treads Improved Heat Sink Medium Storage Unit Huge Storage Unit Structural Scanner Sensor Array Signal Interpreter Terrain Scan Processor Targeting Computer Medium Laser Dirty Datajack Mining Laser [Rating: 10] Favorites ----------- Power Ion Engine Engine Ion Engine Propulsion Light Treads Treads Light Treads Leg Aluminum Leg Utility Large Storage Unit Device Sensor Array Storage Large Storage Unit Weapon Light Assault Rifle Energy Gun Medium Laser Ballistic Gun Light Assault Rifle Special Weapon Mining Laser Build | -11 -10 -10 -10 ------- Run | Yrd Mat Min Sub Slots Evolved . | . . . . Power . | . . . . Propulsion . | . . . . Utility . | . . . . Weapon . | . . . . Parts Attached 16 | . 9 . 7 Power 3 | . 1 . 2 Engine 3 | . 1 . 2 Core . | . . . . Reactor . | . . . . Propulsion 5 | . 4 . 1 Treads 5 | . 4 . 1 Leg . | . . . . Wheel . | . . . . Hover . | . . . . Flight . | . . . . Utility 3 | . 1 . 2 Device 2 | . . . 2 Storage 1 | . 1 . . Processor . | . . . . Hackware . | . . . . Protection . | . . . . Artifact . | . . . . Weapon 5 | . 3 . 2 Energy Gun 1 | . 1 . . Energy Cannon . | . . . . Ballistic Gun 3 | . 1 . 2 Ballistic Cannon . | . . . . Launcher . | . . . . Special Weapon 1 | . 1 . . Impact Weapon . | . . . . Slashing Weapon . | . . . . Piercing Weapon . | . . . . Special Melee Weapon . | . . . . Unidentified Prototypes . | . . . . Parts Lost 4 | . 1 . 3 Power 3 | . 1 . 2 Propulsion 1 | . . . 1 Utility . | . . . . Weapon . | . . . . Highest Loss Streak 1 | . 1 . 1 To Critical Strikes 1 | . . . 1 Average Backups 12 | . 11 14 13 Power 1 | . 1 2 . Propulsion 2 | . 2 2 1 Utility 6 | . 5 8 8 Weapon 1 | . 1 2 2 Tool/Special . | . . . . Unused Backups 19 | . 8 . 11 Power 1 | . 1 . . Propulsion 5 | . 4 . 1 Utility 9 | . 1 . 8 Weapon 3 | . 2 . 1 Tool/Special 1 | . . . 1 Average Slot Usage (%) 86 | . 81 85 93 Engine 13 | . 13 14 13 Treads 23 | . 20 28 27 Leg 2 | . 4 . . Device 3 | . . . 8 Storage 14 | . 14 14 14 Energy Gun 6 | . 9 . 2 Ballistic Gun 17 | . 13 14 23 Special Weapon 4 | . 4 14 1 Peak Build Rating 10 | . 7 7 10 Average Rating 7 | . 6 7 8 On Entrance 6 | 6 6 7 7 Avg Prop Armor Cover (%) . | . . . . Naked Turns . | . . . . Heaviest Build 30 | 13 28 27 30 Greatest Support 40 | 20 40 40 40 Greatest Overweight (x) 1 | . 1 . . Average Overweight (x) . | . . . . Largest Inventory Capacity 15 | . 15 15 15 Average Capacity 14 | . 14 15 15 Most Carried 15 | . 15 14 15 Average Carried 12 | . 11 14 14 Final Capacity 15 | 8 15 15 15 Final Carried 15 | 6 14 14 15 Class Distribution -------------------- 100% | Mutant Dominant Class ---------------- Mutant | -10/Materials Mutant | -10/Mines Mutant | -10/Subcaves Resources | -11 -10 -10 -10 ----------- Run | Yrd Mat Min Sub Matter Collected 480 | 191 143 . 146 Remotely . | . . . . Salvage Created 911 | . 571 . 340 Parts 58 | . 32 . 26 Haulers Intercepted 2 | . 2 . . Recyclers Shooed . | . . . . Parts Field Recycled . | . . . . Retrieved Matter . | . . . . Parts Self-Destructed 13 | . . . 13 Prevented . | . . . . Parts Restored . | . . . . Kills | -11 -10 -10 -10 ------- Run | Yrd Mat Min Sub Combat Hostiles Destroyed 22 | . 12 . 10 Guns 21 | . 11 . 10 Classes Destroyed 6 | . 5 . 1 Builder 1 | . 1 . . Hauler 2 | . 2 . . Swarmer 7 | . 3 . 4 Grunt 8 | . 8 . . Sentry 1 | . . . 1 Subdweller 6 | . 1 . 5 Best Kill Streak 5 | . 5 . 4 Combat Bots Only 5 | . 5 . 4 Max Kills in Single Turn 2 | . 2 . 1 Gunslinging . | . . . . Exploded . | . . . . Melee . | . . . . Uniques/NPCs Destroyed . | . . . . Combat | -11 -10 -10 -10 -------- Run | Yrd Mat Min Sub Hostile Shots Fired 174 | . 61 . 113 Missed 61 | . 20 . 41 Hits 113 | . 41 . 72 Projectile 113 | . 41 . 72 Critical Strikes 3 | . 1 . 2 Damage Taken 1172 | . 396 . 776 Core 256 | . 72 . 184 Absorbed by Shields . | . . . . Ignored by Resistances 349 | . 125 . 224 Core Remaining (%) 100 | 100 . . . Volleys Fired 108 | . 51 . 57 Largest 2 | . 2 . 2 Hottest 100 | . 100 . 75 Shots Fired 211 | . 100 . 111 Gun 209 | . 98 . 111 Cannon . | . . . . Launcher . | . . . . Special 2 | . 2 . . Kinetic 146 | . 49 . 97 Thermal 65 | . 51 . 14 Explosive . | . . . . Electromagnetic . | . . . . Robot Hit Streak 33 | . 33 . 20 Robot Miss Streak 2 | . 2 . 2 Penetration Max . | . . . . Secondary Targets 6 | . 2 . 4 Max Gunslinging Chain 1 | . 1 . 1 Shots Hit Robots 173 | . 77 . 96 Core Hits 55 | . 28 . 27 Critical Kills . | . . . . Critical Parts Destroyed 1 | . 1 . . Critical Strikes 9 | . 7 . 2 Burn 8 | . 6 . 2 Destroy 1 | . 1 . . Melee Attacks . | . . . . Impact . | . . . . Slashing . | . . . . Piercing . | . . . . Sneak Attacks . | . . . . Combat Hostiles . | . . . . Follow-up Attacks . | . . . . Damage Inflicted 1754 | . 840 . 914 Guns 1754 | . 840 . 914 Cannons . | . . . . Explosions . | . . . . Melee . | . . . . Ramming . | . . . . Kinetic 1079 | . 302 . 777 Thermal 675 | . 538 . 137 Explosive . | . . . . Electromagnetic . | . . . . Impact . | . . . . Slashing . | . . . . Piercing . | . . . . Highest Corruption . | . . . . Average Corruption . | . . . . Corruption Purged . | . . . . Corruption Blocked . | . . . . Overload Shots . | . . . . Overflow Damage . | . . . . Projectiles . | . . . . Explosions . | . . . . Melee . | . . . . Knockbacks . | . . . . Impact . | . . . . Kinetic . | . . . . Secondary . | . . . . Self-Inflicted Damage . | . . . . Shots . | . . . . Rammed . | . . . . Targets Rammed . | . . . . Kicked . | . . . . Crushed . | . . . . Highest Temperature 209 | . 209 . 7 Average Temperature 68 | . 70 . 3 Received Heat Transfer 474 | . 234 . 240 Siege Activations . | . . . . Martial Activations . | . . . . Shielding Activations . | . . . . Robots Disrupted . | . . . . Combat Hostiles . | . . . . Robots Corrupted . | . . . . Combat Hostiles . | . . . . Parts Fried . | . . . . Impact Corruptions . | . . . . Robots Melted . | . . . . Combat Hostiles . | . . . . Parts Melted 5 | . 4 . 1 Heat Transferred 2590 | . 2035 . 555 Parts Sabotaged . | . . . . Parts Stolen . | . . . . Parts Stripped . | . . . . Power Chain Reactions . | . . . . Alert | -11 -10 -10 -10 ------- Run | Yrd Mat Min Sub Maximum Alert Level . | . . . . Low Security (%) 100 | . 100 100 . Level 1 . | . . . . Level 2 . | . . . . Level 3 . | . . . . Level 4 . | . . . . Level 5 . | . . . . High Security . | . . . . Max Security . | . . . . Peak Influence 137 | . 137 . . Initial . | . . . . Average 22 | . 24 . . Influence Increases 546 | . 341 . 205 Destroy 0b10 Robot/C 320 | . 220 . 100 Destroy 0b10 Robot/NC 15 | . 15 . . Destroy Leader 54 | . 54 . . Successful Hack 28 | . 28 . . Disable Machine 9 | . 9 . . Lose Combat Pursuer 120 | . 15 . 105 Influence Decreases 546 | . 341 . 205 Time Decay 454 | . 269 . 185 Lost Part 30 | . 10 . 20 Purge Threat 62 | . 62 . . Squads Dispatched 2 | . 2 . . Investigation 2 | . 2 . . Extermination . | . . . . Reinforcement . | . . . . Assault . | . . . . Garrison . | . . . . Intercept . | . . . . Searches Triggered . | . . . . Construction Impeded . | . . . . Haulers Reinforced . | . . . . Active Scanning Responses . | . . . . Cargo Convoy Interrupts . | . . . . Stealth | -11 -10 -10 -10 --------- Run | Yrd Mat Min Sub Distress Signals 3 | . 3 . . Communications Jammed . | . . . . Distress Signals . | . . . . Times Spotted 30 | . 18 . 12 Peak Tracking Total 4 | . 4 . 4 Tactical Retreats 5 | . 1 . 4 Traps | -11 -10 -10 -10 ------- Run | Yrd Mat Min Sub Traps Triggered 4 | . 4 . . Indirectly . | . . . . Trap Hack Attempts . | . . . . Triggered . | . . . . Disarmed . | . . . . Reprogrammed . | . . . . Reused . | . . . . Traps Extracted . | . . . . Installed . | . . . . Triggered . | . . . . Machines | -11 -10 -10 -10 ---------- Run | Yrd Mat Min Sub Machines Disabled 1 | . 1 . . Max in Single Turn 1 | . 1 . . Machines Repaired . | . . . . Machines Dismantled . | . . . . Machines Sabotaged . | . . . . Overloaded Fab Kills . | . . . . Hacking | -11 -10 -10 -10 --------- Run | Yrd Mat Min Sub Machines Accessed 6 | . 5 . 1 Terminals 5 | . 5 . . Fabricators . | . . . . Repair Stations . | . . . . Recycling Units . | . . . . Scanalyzers . | . . . . Garrison Access . | . . . . Total Hacks 29 | . 24 . 5 Successful 18 | . 13 . 5 Failed 11 | . 11 . . Catastrophic 2 | . 2 . . Database Lockouts . | . . . . Manual 21 | . 21 . . Terminals 24 | . 24 . . Fabricators . | . . . . Repair Stations . | . . . . Recycling Units . | . . . . Scanalyzers . | . . . . Garrison Access . | . . . . Terminal Hacks 14 | . 9 . 5 Record 7 | . 2 . 5 Part Schematic 4 | . 4 . . Branch Access Points 1 | . 1 . . Terminal Index 1 | . 1 . . Unreport Threat 1 | . 1 . . Fabricator Hacks . | . . . . Repair Station Hacks . | . . . . Recycling Unit Hacks . | . . . . Scanalyzer . | . . . . Garrison Access Hacks . | . . . . Unauthorized Hacks 4 | . 4 . . Terminals 4 | . 4 . . Botnet 4 | . 4 . . Fabricators . | . . . . Repair Stations . | . . . . Recycling Units . | . . . . Scanalyzers . | . . . . Garrison Access . | . . . . Data Cores Recovered . | . . . . Used . | . . . . Hacking Detections 5 | . 5 . . Full Trace Events 1 | . 1 . . Feedback Events . | . . . . Feedback Blocked . | . . . . Robot Schematics Acquired . | . . . . Robots Built . | . . . . Authchips . | . . . . Time . | . . . . Total Robot Build Rating . | . . . . Part Schematics Acquired 4 | . 4 . . Parts Built . | . . . . Authchips . | . . . . Time . | . . . . Total Part Build Rating . | . . . . Part Studies Acquired . | . . . . Parts Repaired . | . . . . Time . | . . . . Parts Recycled . | . . . . Recycled Matter . | . . . . Retrieved Matter . | . . . . Retrieved Components . | . . . . Parts Scanalyzed . | . . . . Part Schematics Acquired . | . . . . Parts Damaged . | . . . . Bothacking | -11 -10 -10 -10 ------------ Run | Yrd Mat Min Sub Used RIF Installer . | . . . . Robots Hacked . | . . . . Non-combat . | . . . . Combat . | . . . . Robot Hacks Applied . | . . . . Relay Couplers Released . | . . . . Fabnet Peak Effective % . | . . . . Robots Rewired . | . . . . Allies Hacked . | . . . . Hacks Repelled . | . . . . Allies | -11 -10 -10 -10 -------- Run | Yrd Mat Min Sub Total Allies . | . . . . Largest Group . | . . . . Highest-Rated Group . | . . . . Highest-Rated Ally . | . . . . Total Orders . | . . . . Ally Attacks . | . . . . Total Damage . | . . . . Kills . | . . . . Allies Corrupted . | . . . . Allies Melted . | . . . . Intel | -11 -10 -10 -10 ------- Run | Yrd Mat Min Sub Active Infowar (turns) 605 | . . . 605 Optics 191 | . . . 191 Sensors 414 | . . . 414 Robot Analysis Total . | . . . . Derelict Logs Recovered . | . . . . Drone Launches . | . . . . Drone Recoveries . | . . . . Exploration | -11 -10 -10 -10 ------------- Run | Yrd Mat Min Sub Turns Passed 2601 | . 1431 155 1015 Spaces Moved 1256 | 1 684 41 530 Core . | . . . . Treads 1148 | . 577 41 530 Legs 108 | 1 107 . . Wheels . | . . . . Hover . | . . . . Flight . | . . . . Fastest Speed 120 | 120 120 160 160 Average Speed 166 | 120 171 160 160 Slowest Speed 240 | 120 240 160 160 Overloaded Moves . | . . . . Propulsion Burnouts . | . . . . Robots Hopped . | . . . . Potential Cave-ins . | . . . . Cave-ins Triggered . | . . . . Exploration Rate (%) 37 | 2 91 16 40 Regions Visited 3 Branch Regions 2 Pre-discovered Areas . | . . . . Known Exits Taken 1 | . 1 . . Unknown Exits Taken 2 | 1 . 1 . Scrap Searched 4 | . . . 4 Spaces Dug . | . . . . Terrain Destroyed . | . . . . Melee . | . . . . Projectile . | . . . . AOE . | . . . . Terrain Rammed . | . . . . Walls Destroyed . | . . . . Machines Disabled . | . . . . Actions | -11 -10 -10 -10 --------- Run | Yrd Mat Min Sub Total 1581 | . 847 131 603 Wait 169 | . 77 91 1 Move 1253 | . 683 40 530 Hop . | . . . . Pick Up 24 | . 19 . 5 Fast Attach . | . . . . Attach 10 | . 5 . 5 Detach . | . . . . Swap 7 | . 4 . 3 Drop 10 | . 8 . 2 Fire 108 | . 51 . 57 Melee . | . . . . Ram . | . . . . Kick . | . . . . Crush . | . . . . Escape Stasis . | . . . . Rewire . | . . . . Trap . | . . . . Miscellaneous . | . . . . Route ------- -11/Scrapyard -10/Materials (discovered 5 exits: [*Mat x3] / *Min x2) -10/Mines (discovered 2 exits: [*Mat] / *Sub) -10/Subcaves (discovered 1 exit: [*Mat]) History --------- Turn | Location | Event 1 | -11/Scrapyard | Discovered new exit (range 0) 1 | -11/Scrapyard | Entered Materials 53 | -10/Materials | Discovered new exit (range 12) 221 | -10/Materials | Discovered new exit (range 9) 261 | -10/Materials | Identified exit to Mines 277 | -10/Materials | Discovered new exit (range 14) 310 | -10/Materials | Build established: Mutant 593 | -10/Materials | Discovered new exit (range 14) 601 | -10/Materials | Derelicts attacked the area 1144 | -10/Materials | Discovered new exit (range 4) 1432 | -10/Materials | Entered Mines 1442 | -10/Mines | Discovered new exit (range 8) 1542 | -10/Mines | Discovered new exit (range 6) 1587 | -10/Mines | Entered Subcaves 1841 | -10/Subcaves | Core integrity fell below 50% 2098 | -10/Subcaves | Discovered new exit (range 20) 2126 | -10/Subcaves | Visited Clippyterm 2131 | -10/Subcaves | Learned Factory stockpile data 2131 | -10/Subcaves | Learned Factory garrison access intel 2497 | -10/Subcaves | Ambushed by Subdwellers from Twisted Machinery 2519 | -10/Subcaves | Core integrity fell below 20% 2602 | -10/Subcaves | Destroyed by 62-JTD(R) with Subdweller Laser Last Messages --------------- 02444_ Acquired Battle Cannon. 02445_ Searching scrap... 02445_ Found Battle Rifle. 02445_ Found Sub. Beam Cannon. 02445_ Found 70 Matter. 02448_ Dropped Lgt. Assault Rifle. 02451_ Acquired 10 matter. 02467_ Subatomizers dissect the Sub. Optics. 02473_ Searching scrap... 02473_ Found Sub. Shrapnel Launcher. 02473_ Found Sub. Beam Cannon. 02473_ Found 43 Matter. 02478_ Searching scrap... 02478_ Found Battle Rifle. 02478_ Found Lgt. Humpback. 02478_ Found 60 Matter. 02518_ UP-F6I(R) destroyed. 02518_ Switching to secondary target: 62-JTD(R). 02521_ 62-JTD(R) suffers critical hit (Burn). 02569_ S7-RQW(R) destroyed. Map ----- +----------------------------------------------------+ | ?????????????????????????????????????????????????? | | ?????????????????????????????????????????????????? | | ?????????????????????????????????????????????????? | | ?????????????????????????????????????????????????? | | ????????#################????????####????????????? | | ##??????# ##???##### ##????#######? | | ##??????# #??## ##???#[]#![#? | | #???????# #?### ##??#%&%&%#? | | #??????## ## #### ##?##"&###? | | #??????# ### ### #?###]%### | | ###??##### ### ## ### #]## | | ##??## ### ## " " | | #### ## ##! ! | | %& ! | | ## ## !*[ | | #### ##### ## # | | ## #### #???# ###### ## | | ### ## #??# ##????# #? | | ## ##?# #### ##?# #????## #? | | ## ## ##??# ##?## ### #???## ##? | | ##### #####???# % ##?## ### ##??## ##? | | ???## #???????# ##?# ###???# # # | | ??## ##????### ### #???## #? | | ??# ##???# ## ## #???# ### #? | | ??# #???# ### ####?## #?# # | | ?## #??## ##?##@ # # ### #?# ## | | ?# #### ##??# ### ### # | | ?## ## ### #??## R # ## | | ??## ##?# #??# ## # ### % | | ???#### #??## #?## ########## # | | ??????## ###???# ### ##????????## ##% ## | | ???????#### ##?????# #??????##### ###% # | | ??????????###?# #????## # | | ???????????# #????# ## | | ???????????? ##????# | | ????????????# ### ##?????# | | ????????????? #?####??????# ### | | ????????????? ##???????????# ### | | ????????????? ??????????????##### ### | | ?###?????????? % ??????????????????## ## | | # #?????????? ! ????????????????????## ### | | #??????????? ???????????????????????## ##?# | | ####??????????????????????????????????## #??# | | #????????????????????????????????????## ##?## | | #????????????????????????????????????# ###?## | | #????????????????????????????????????# ##???# | | ??##?????????????????????????????????# #????# | | ##????????????????????????????????# #???# " | | ##???????????????????????????????# #??# "" | | #???????????????????????????????## #?# "" | +----------------------------------------------------+ Best States ------------- Heat Dissipation 25 Energy Generation 10 Energy Capacity 250 Matter Stores 300 Matter Capacity 300 Sight Range 21 Robot Scan Range 14 Terrain Scan Density 10 Resistance: KI 20 Resistance: TH 20 Resistance: EX 20 Resistance: EM 20 Resistance: I 20 Resistance: S 20 Resistance: P 20 Evasion (%) 55 Recoil Reduction 2 Offensive Hacking 10 Item Schematics ----------------- Lrg. Storage Unit | -10/Materials | Hacked Utility Shielding | -10/Materials | Hacked Signal Interpreter | -10/Materials | Hacked Sensor Array | -10/Materials | Hacked Robot Schematics ------------------ None Fabricated ------------ Nothing Repaired ---------- Nothing Studied --------- None Alien Tech Used ----------------- None Achievements -------------- None Challenges ------------ None Game ------ Seed SignalPropulsionDetonator Manual? 0 Play Time 00:18:00 Cumulative 34.4 hours Start 2026.03.24 @ 13:16:00 End 2026.03.24 @ 13:42:15 Sessions 1 Manual Loads 0 Difficulty Adventurer Special Mode None Game No. 45 Rogue 33 Adventurer 12 Explorer 0 Win Type - Total 1 Types 1/0/0/0/0/0/0/0/0/0 Lore% 22 Gallery% 32 Achievement% 26 Wizard Run 0 Options --------- Layout 0 ASCII 0 Keyboard 0 Movement Mouse Keybinds 0 Fullscreen 2 Font 24/Smallcaps Map View 76x50 Zoom Use 0% Tactical HUD 1 Map Filters NONE Filters NONE Steam 1 RUN: e4181ad3-81f5-4f8a-a8ad-2dc667032884